Cogmind - Beta 17 @@@ ROGUE MODE // 2026.07.28 @ 10:08:13 Player: gortmind Result: Destroyed by S-10 Pest with Light Assault Rifle Performance ------------- Evolutions (1) 500 Regions Visited (3) 600 Robots Destroyed (52) 260 Value Destroyed (1151) 1151 Prototype IDs (5) 100 Alien Tech Used (0) 0 Bonus (21) 21 TOTAL SCORE: 2632 Bonus ------- High Alert Combat Kills 21 Cogmind --------- Core Integrity 0/400 Matter 3/300 Energy 99/100 System Corruption 0% Temperature Cool (0) Movement Core (150) Ox2 Location -9/Materials Parts ------- > --- POWER (1) -------- (None) > --- PROPULSION (3) --- (None) > --- UTILITY (3) ------ Small Storage Unit > --- WEAPON (2) ------- Rocket Launcher > --- INVENTORY (8) ---- Nuclear Core Nuclear Core High-capacity Matter Pod (190) Authchip [Armor] Peak State ------------ > --- POWER ------------ Nuclear Core > --- PROPULSION ------- Carbon-fiber Leg Carbon-fiber Leg Carbon-fiber Leg > --- UTILITY ---------- Small Storage Unit Bomb Drone Bay > --- WEAPON ----------- Improved Light Cannon Rocket Launcher > --- INVENTORY -------- Nuclear Core Nuclear Core High-capacity Matter Pod Improved Light Cannon Improved Light Cannon Datajack [Rating: 32] Favorites ----------- Power Light Ion Engine Engine Light Ion Engine Power Core Nuclear Core Propulsion Aluminum Leg Leg Aluminum Leg Utility Small Storage Unit Device Bomb Drone Bay Storage Small Storage Unit Weapon Improved Light Cannon Ballistic Gun Light Assault Rifle Ballistic Cannon Improved Light Cannon Launcher Rocket Launcher Special Melee Weapon Datajack Build | -11 -10 -10 -9 ------- Run | Yrd Mat Min Mat Slots Evolved 2 | . . . 2 Power . | . . . . Propulsion 1 | . . . 1 Utility 1 | . . . 1 Weapon . | . . . . Parts Attached 24 | 4 12 1 7 Power 3 | 1 1 . 1 Engine 2 | 1 1 . . Core 1 | . . . 1 Reactor . | . . . . Propulsion 6 | 2 1 . 3 Treads . | . . . . Leg 6 | 2 1 . 3 Wheel . | . . . . Hover . | . . . . Flight . | . . . . Utility 5 | 1 3 . 1 Device 2 | . 1 . 1 Storage 3 | 1 2 . . Processor . | . . . . Hackware . | . . . . Protection . | . . . . Artifact . | . . . . Weapon 10 | . 7 1 2 Energy Gun . | . . . . Energy Cannon . | . . . . Ballistic Gun 2 | . 2 . . Ballistic Cannon 4 | . 3 . 1 Launcher 3 | . 1 1 1 Special Weapon . | . . . . Impact Weapon . | . . . . Slashing Weapon . | . . . . Piercing Weapon . | . . . . Special Melee Weapon 1 | . 1 . . Unidentified Prototypes 1 | . . . 1 Parts Lost 10 | . . . 10 Power 1 | . . . 1 Propulsion 3 | . . . 3 Utility 1 | . . . 1 Weapon 5 | . . . 5 Highest Loss Streak 10 | . . . 10 To Critical Strikes 1 | . . . 1 Average Backups 7 | 4 7 6 6 Power 1 | . 1 1 1 Propulsion 1 | 1 2 1 . Utility 1 | . 1 1 1 Weapon 2 | 2 2 2 2 Tool/Special . | . . . . Unused Backups 10 | . 5 2 3 Power 3 | . 1 . 2 Propulsion 4 | . 3 1 . Utility 2 | . . 1 1 Weapon 1 | . 1 . . Tool/Special . | . . . . Average Slot Usage (%) 94 | . 98 99 79 Engine 10 | . 13 14 . Core 2 | . . . 9 Leg 27 | . 27 28 28 Device 3 | . 2 . 9 Storage 23 | . 25 27 11 Ballistic Cannon 22 | . 25 26 8 Launcher 2 | . . 1 9 Peak Build Rating 32 | 4 11 11 32 Average Rating 13 | 2 9 10 28 On Entrance 6 | . 4 10 11 Avg Prop Armor Cover (%) . | . . . . Naked Turns . | . . . . Heaviest Build 28 | 8 20 20 28 Greatest Support 45 | 20 20 20 45 Greatest Overweight (x) 3 | . . . 3 Average Overweight (x) . | . . . . Largest Inventory Capacity 8 | 8 8 8 8 Average Capacity 7 | 6 8 8 8 Most Carried 8 | 8 8 8 8 Average Carried 7 | 5 7 7 6 Final Capacity 8 | 8 8 8 8 Final Carried 8 | 8 8 7 4 Class Distribution -------------------- 100% | Mutant Dominant Class ---------------- Mutant | -10/Materials Mutant | -10/Mines Mutant | -9/Materials Resources | -11 -10 -10 -9 ----------- Run | Yrd Mat Min Mat Matter Collected 1141 | 83 389 404 265 Remotely . | . . . . Salvage Created 1179 | . 488 139 552 Parts 89 | . 32 11 46 Haulers Intercepted 4 | . 2 . 2 Recyclers Shooed 1 | . 1 . . Parts Field Recycled . | . . . . Retrieved Matter . | . . . . Parts Self-Destructed . | . . . . Prevented . | . . . . Parts Restored . | . . . . Kills | -11 -10 -10 -9 ------- Run | Yrd Mat Min Mat Combat Hostiles Destroyed 35 | . 11 7 17 Cannons 27 | . 11 7 9 AOE 8 | . . . 8 Classes Destroyed 9 | . 6 1 2 Worker 3 | . . . 3 Builder 4 | . 2 . 2 Hauler 4 | . 2 . 2 Recycler 4 | . 2 . 2 Watcher 5 | . 3 . 2 Swarmer 12 | . 6 . 6 Grunt 13 | . 5 4 4 Sentry 7 | . . . 7 Assembled 3 | . . 3 . Best Kill Streak 9 | . 5 3 9 Combat Bots Only 4 | . 4 3 4 Max Kills in Single Turn 3 | . 2 1 3 Gunslinging . | . . . . Exploded 1 | . . . 1 Melee . | . . . . Uniques/NPCs Destroyed . | . . . . Combat | -11 -10 -10 -9 -------- Run | Yrd Mat Min Mat Hostile Shots Fired 255 | . 63 11 181 Missed 86 | . 30 3 53 Hits 169 | . 33 8 128 Projectile 169 | . 33 8 128 Critical Strikes 6 | . . . 6 Damage Taken 2103 | . 340 92 1671 Core 476 | . 76 . 400 Absorbed by Shields . | . . . . Regen/Repaired (Parts) 99 | . 99 . . Core Remaining (%) 84 | 100 . 69 . Volleys Fired 108 | . 43 20 45 Largest 2 | . 2 2 2 Hottest 66 | . 66 66 66 Shots Fired 200 | . 86 40 74 Gun . | . . . . Cannon 175 | . 86 40 49 Launcher 25 | . . . 25 Special . | . . . . Kinetic 175 | . 86 40 49 Thermal . | . . . . Explosive 25 | . . . 25 Electromagnetic . | . . . . Robot Hit Streak 14 | . 7 2 14 Robot Miss Streak 4 | . 4 4 4 Penetration Max . | . . . . Secondary Targets . | . . . . Shots Hit Robots 105 | . 43 9 53 Core Hits 69 | . 22 6 41 Critical Kills . | . . . . Critical Parts Destroyed . | . . . . Critical Strikes 3 | . 1 1 1 Blast 3 | . 1 1 1 Melee Attacks 22 | . 5 . 17 Impact . | . . . . Slashing . | . . . . Piercing . | . . . . Sneak Attacks 11 | . 2 . 9 Combat Hostiles . | . . . . Follow-up Attacks . | . . . . Damage Inflicted 3532 | . 950 215 2367 Guns . | . . . . Cannons 1898 | . 950 215 733 Explosions 1604 | . . . 1604 Melee . | . . . . Ramming 30 | . . . 30 Kinetic 1898 | . 950 215 733 Thermal 121 | . . . 121 Explosive 1321 | . . . 1321 Electromagnetic 162 | . . . 162 Impact . | . . . . Slashing . | . . . . Piercing . | . . . . Highest Corruption . | . . . . Average Corruption . | . . . . Corruption Purged . | . . . . Corruption Blocked . | . . . . Overload Shots . | . . . . Overflow Damage 217 | . 23 2 192 Projectiles 25 | . 23 2 . Explosions 192 | . . . 192 Melee . | . . . . Knockbacks 7 | . 4 . 3 Impact . | . . . . Kinetic 7 | . 4 . 3 Secondary . | . . . . Self-Inflicted Damage 331 | . . . 331 Shots 7 | . . . 7 Rammed . | . . . . Targets Rammed 6 | . . . 6 Kicked 6 | . . . 6 Crushed . | . . . . Highest Temperature 87 | . 48 78 87 Average Temperature 18 | . 18 18 17 Received Heat Transfer 435 | . 111 78 246 Siege Activations . | . . . . Martial Activations . | . . . . Shielding Activations . | . . . . Robots Disrupted . | . . . . Combat Hostiles . | . . . . Robots Corrupted . | . . . . Combat Hostiles . | . . . . Parts Fried . | . . . . Impact Corruptions . | . . . . Robots Melted . | . . . . Combat Hostiles . | . . . . Parts Melted . | . . . . Heat Transferred 150 | . . . 150 Parts Sabotaged . | . . . . Parts Stolen . | . . . . Parts Stripped . | . . . . Power Chain Reactions . | . . . . Alert | -11 -10 -10 -9 ------- Run | Yrd Mat Min Mat Maximum Alert Level 2 | . . . 2 Low Security (%) 90 | 100 100 100 56 Level 1 6 | . . . 31 Level 2 2 | . . . 12 Level 3 . | . . . . Level 4 . | . . . . Level 5 . | . . . . High Security . | . . . . Max Security . | . . . . Peak Influence 514 | . 95 60 514 Initial 8 | . . 8 . Average 55 | . 27 4 202 Influence Increases 1298 | . 389 97 812 Destroy 0b10 Robot/C 640 | . 220 80 340 Destroy 0b10 Robot/NC 100 | . 45 . 55 Destroy Leader 168 | . 60 . 108 Successful Hack 24 | . 15 . 9 Disable Machine 150 | . 45 15 90 Destroy Structure 216 | . 4 2 210 Influence Decreases 792 | . 366 120 306 Entered New Map 15 | . . 15 . Time Decay 677 | . 366 105 206 Lost Part 100 | . . . 100 Squads Dispatched 2 | . 1 . 1 Investigation 1 | . 1 . . Extermination . | . . . . Reinforcement 1 | . . . 1 Assault . | . . . . Garrison . | . . . . Intercept . | . . . . Searches Triggered . | . . . . Construction Impeded . | . . . . Haulers Reinforced . | . . . . Active Scanning Responses . | . . . . Cargo Convoy Interrupts . | . . . . Stealth | -11 -10 -10 -9 --------- Run | Yrd Mat Min Mat Distress Signals 2 | . . . 2 Communications Jammed . | . . . . Distress Signals . | . . . . Times Spotted 50 | . 17 7 26 Peak Tracking Total 8 | . 5 3 8 Tactical Retreats . | . . . . Traps | -11 -10 -10 -9 ------- Run | Yrd Mat Min Mat Traps Triggered 2 | . 1 . 1 Indirectly . | . . . . Trap Hack Attempts . | . . . . Triggered . | . . . . Disarmed . | . . . . Reprogrammed . | . . . . Reused . | . . . . Traps Extracted . | . . . . Installed . | . . . . Triggered . | . . . . Machines | -11 -10 -10 -9 ---------- Run | Yrd Mat Min Mat Machines Disabled 10 | . 3 1 6 Max in Single Turn 2 | . 1 1 2 Machines Repaired . | . . . . Machines Dismantled . | . . . . Machines Sabotaged . | . . . . Overloaded Fab Kills . | . . . . Hacking | -11 -10 -10 -9 --------- Run | Yrd Mat Min Mat Machines Accessed 11 | . 6 1 4 Terminals 6 | . 3 . 3 Fabricators . | . . . . Repair Stations 1 | . 1 . . Recycling Units 3 | . 2 . 1 Scanalyzers . | . . . . Garrison Access . | . . . . Total Hacks 30 | . 20 1 9 Successful 21 | . 14 1 6 Failed 9 | . 6 . 3 Catastrophic . | . . . . Database Lockouts . | . . . . Manual . | . . . . Terminals 13 | . 6 . 7 Fabricators . | . . . . Repair Stations 7 | . 7 . . Recycling Units 9 | . 7 . 2 Scanalyzers . | . . . . Garrison Access . | . . . . Terminal Hacks 9 | . 4 1 4 Record 1 | . . . 1 Prototype ID Bank 2 | . 1 . 1 Open Door 1 | . . 1 . Alert Level 1 | . 1 . . Locate Traps 2 | . 1 . 1 Transport Status 1 | . 1 . . Hauler Manifests 1 | . . . 1 Fabricator Hacks . | . . . . Repair Station Hacks 6 | . 6 . . Scan Component 3 | . 3 . . Repair 3 | . 3 . . Recycling Unit Hacks 6 | . 4 . 2 Process 1 | . 1 . . Report Inventory 3 | . 2 . 1 Retrieve Matter 1 | . 1 . . Retrieve Components 1 | . . . 1 Scanalyzer . | . . . . Garrison Access Hacks . | . . . . Unauthorized Hacks . | . . . . Terminals . | . . . . Fabricators . | . . . . Repair Stations . | . . . . Recycling Units . | . . . . Scanalyzers . | . . . . Garrison Access . | . . . . Data Cores Recovered . | . . . . Used . | . . . . Hacking Detections 5 | . 3 . 2 Full Trace Events 2 | . 2 . . Feedback Events . | . . . . Feedback Blocked . | . . . . Robot Schematics Acquired . | . . . . Robots Built . | . . . . Authchips . | . . . . Time . | . . . . Total Robot Build Rating . | . . . . Part Schematics Acquired . | . . . . Parts Built . | . . . . Authchips . | . . . . Time . | . . . . Total Part Build Rating . | . . . . Part Studies Acquired . | . . . . Parts Repaired 3 | . 3 . . Time 84 | . 84 . . Parts Recycled . | . . . . Recycled Matter 228 | . 228 . . Retrieved Matter 228 | . 228 . . Retrieved Components 4 | . . . 4 Parts Scanalyzed . | . . . . Part Schematics Acquired . | . . . . Parts Damaged . | . . . . Bothacking | -11 -10 -10 -9 ------------ Run | Yrd Mat Min Mat Used RIF Installer . | . . . . Robots Hacked 8 | . 3 . 5 Non-combat 6 | . 3 . 3 Combat 2 | . . . 2 Robot Hacks Applied 9 | . 3 . 6 parse_system 5 | . 2 . 3 no_distress 3 | . 1 . 2 find_recycling 1 | . . . 1 Relay Couplers Released . | . . . . Fabnet Peak Effective % . | . . . . Robots Rewired . | . . . . Allies Hacked . | . . . . Hacks Repelled . | . . . . Allies | -11 -10 -10 -9 -------- Run | Yrd Mat Min Mat Total Allies . | . . . . Largest Group . | . . . . Highest-Rated Group . | . . . . Highest-Rated Ally . | . . . . Total Orders . | . . . . Ally Attacks . | . . . . Total Damage . | . . . . Kills . | . . . . Allies Corrupted . | . . . . Allies Melted . | . . . . Intel | -11 -10 -10 -9 ------- Run | Yrd Mat Min Mat Active Infowar (turns) . | . . . . Robot Analysis Total . | . . . . Derelict Logs Recovered 2 | . . 2 . Drone Launches . | . . . . Drone Recoveries . | . . . . Exploration | -11 -10 -10 -9 ------------- Run | Yrd Mat Min Mat Turns Passed 2984 | 66 1226 1070 622 Spaces Moved 1842 | 49 709 727 357 Core 37 | 12 . . 25 Treads . | . . . . Legs 1805 | 37 709 727 332 Wheels . | . . . . Hover . | . . . . Flight . | . . . . Fastest Speed 50 | 50 120 120 100 Average Speed 119 | 102 120 120 121 Slowest Speed 200 | 120 120 120 200 Overloaded Moves . | . . . . Propulsion Burnouts . | . . . . Robots Hopped . | . . . . Potential Cave-ins . | . . . . Cave-ins Triggered . | . . . . Exploration Rate (%) 62 | 3 85 99 64 Regions Visited 3 Branch Regions 1 Pre-discovered Areas 2 | . . 2 . Known Exits Taken . | . . . . Unknown Exits Taken 3 | 1 1 1 . Scrap Searched 2 | . . 2 . Spaces Dug . | . . . . Terrain Destroyed 249 | . 4 2 243 Melee . | . . . . Projectile 9 | . 4 2 3 AOE 240 | . . . 240 Terrain Rammed . | . . . . Walls Destroyed . | . . . . Machines Disabled . | . . . . Actions | -11 -10 -10 -9 --------- Run | Yrd Mat Min Mat Total 2409 | 64 998 887 460 Wait 329 | . 195 129 5 Move 1839 | 48 708 726 357 Hop . | . . . . Pick Up 44 | 12 20 4 8 Fast Attach . | . . . . Attach 21 | 4 8 1 8 Detach 1 | . . . 1 Swap 16 | . 7 1 8 Drop 23 | . 12 6 5 Fire 108 | . 43 20 45 Melee 22 | . 5 . 17 Ram . | . . . . Kick 6 | . . . 6 Crush . | . . . . Escape Stasis . | . . . . Rewire . | . . . . Trap . | . . . . Miscellaneous . | . . . . Route ------- -11/Scrapyard -10/Materials (discovered 2 exits: *Mat / *Min) -10/Mines (discovered 3 exits: *Mat x2 / [*Sub]) -9/Materials (discovered 1 exit: [*Mat]) History --------- Turn | Location | Event 6 | -11/Scrapyard | Discovered new exit (range 15) 67 | -11/Scrapyard | Entered Materials 319 | -10/Materials | Build established: Mutant 373 | -10/Materials | Discovered new exit (range 5) 753 | -10/Materials | Repaired Lgt. Ion Engine 781 | -10/Materials | Repaired Aluminum Leg 815 | -10/Materials | Repaired Imp. Light Cannon 1118 | -10/Materials | Discovered new exit (range 13) 1293 | -10/Materials | Entered Mines 1339 | -10/Mines | Excavation squad dispatched 1339 | -10/Mines | A large section of the Mines collapsed 1489 | -10/Mines | Discovered new exit (range 6) 1551 | -10/Mines | Found the Drone Emporium 1558 | -10/Mines | Found Prototype Device 1628 | -10/Mines | Learned Materials emergency access door positions 1779 | -10/Mines | Learned location of Storage (-9) 2244 | -10/Mines | Discovered new exit (range 8) 2251 | -10/Mines | Received a Rocket Launcher from a helpful Derelict 2336 | -10/Mines | Discovered new exit (range 11) 2363 | -10/Mines | Entered Materials 2363 | -9/Materials | Evolved 2 slots: Propulsion x1, Utility x1 2369 | -9/Materials | Identified Bomb Drone Bay 2716 | -9/Materials | Discovered new exit (range 15) 2937 | -9/Materials | Core integrity fell below 50% 2968 | -9/Materials | Core integrity fell below 20% 2985 | -9/Materials | Destroyed by S-10 Pest with Light Assault Rifle Last Messages --------------- 02969_ K-01 Serf collects debris. 02969_ Acquired 1 matter. 02970_ Jacked S-10 Pest... >>parse_system Reading system data... 02971_ K-01 Serf collects debris. 02975_ Acquired 3 matter. 02977_ M-13 Machinist repairs S-10 Pest Lgt. Ion Engine. 02977_ K-01 Serf collects debris. 02978_ Datajack destroyed. 02979_ K-01 Serf collects debris. 02979_ Acquired Rocket Launcher. [Achievement: Hydra] 02981_ K-01 Serf collects debris. 02981_ S-10 Pest destroyed. 02981_ Destroyed Sml. Matter Pod. 02981_ K-01 Serf destroyed. 02981_ Destroyed Wheel. 02981_ K-01 Serf destroyed. Map ----- +----------------------------------------------------+ | ##########??????????????????????????????# # | | # #??????????????????????????????######## | | + """ #???????????????????????????????####### | | | # """ #??????????????????????????????######## ! | | # """ #???????????????????????#####+## ## ! | | # #??????????????????????# | | # """ #??????????????????????# % | | # """ #??????????????????????+ % | | + """ #?????????????#????????# ##### # # | | # #?? ?? ???? ????????????????## ## | | ######+## ? ??? ?????????????????####?# "" | | ] ! ??? "?????????????????????# "" | | ] ??? "?????????????????????# "" | | ??? ?????????????????????# | | ##### ## ## # # #### ""????????????????????# | | #####/##### # # o # """???????????????????#### | | # "" # """??????????????????????? | | # """ """ ""S # ???????????????????????? | | # """ """ "" ""######???????????????????? | | # """ """ ; ???????????????????? | | ; ??????????????????? | | = [ * ; ?????????????????????? | | *%##+# ###+#; m= ;;#########????????????????? | | =## ###?# # *% % #????????????????? | | ###/###?# # = * """ +????????????????? | | # #?# #;= %%[ @ """ #????????????????? | | # [#?# !* s %= """ #????????????????? | | # #?##!; = #????????????????? | | / "T" #??## # #????????????????? | | # """ #???# # #????????????????? | | # ]#???#### ### +????????????????? | | ########??????######?###########????????????????? | | #???????????????????????????????????????????????? | | #???????????????????????????????????????????????? | | #???????????????????????????????????????????????? | | #???????????????????????????????????????????????? | | #???????????????????????????????????????????????? | | ????????????????????????????????????????????????? | | ????????????????????????????????????????????????? | | ????????????????????????????????????????????????? | | ????????????????????????????????????????????????? | | ????????????????????????????????????????????????? | | ????????????????????????????????????????????????? | | ????????????????????????????????????????????????? | | ?????????????????????????????????????????????????? | | ?????????????????????????????????????????????????? | | ?????????????????????????????????????????????????? | | ?????????????????????????????????????????????????? | | ?????????????????????????????????????????????????? | | ?????????????????????????????????????????????????? | +----------------------------------------------------+ Best States ------------- Heat Dissipation 47 Energy Generation 14 Energy Capacity 240 Matter Stores 500 Matter Capacity 500 Sight Range 16 Terrain Scan Density 10 Evasion (%) 55 Authchip Count 1 Item Schematics ----------------- None Robot Schematics ------------------ None Fabricated ------------ Nothing Repaired ---------- Lgt. Ion Engine | 60% | -10/Materials Aluminum Leg | 70% | -10/Materials Imp. Light Cannon | 58% | -10/Materials Studied --------- None Alien Tech Used ----------------- None Achievements -------------- Hydra Junior Dev Challenges ------------ None Game ------ Seed NetworkControlReactor Manual? 0 Play Time 00:38:45 Cumulative 10.9 hours Start 2026.07.28 @ 09:17:30 End 2026.07.28 @ 10:08:13 Sessions 1 Manual Loads 0 Difficulty Rogue Special Mode None Game No. 13 Rogue 13 Adventurer 0 Explorer 0 Win Type - Total 0 Types 0/0/0/0/0/0/0/0/0/0 Lore% 11 Gallery% 12 Achievement% 14 Wizard Run 0 Options --------- Layout 1 ASCII 0 Keyboard 0 Movement Mouse Keybinds 0 Fullscreen 1 Font 48/Smallcaps Map View 50x35 Zoom Use 0% Tactical HUD 1 Map Filters NONE Filters NONE Steam 1 RUN: ba308be2-3bcd-4025-aa5b-cb6df8a0236a